Cogmind - Beta 12 @@@ ROGUE MODE // 2023.04.11 @ 14:58:36 Player: Candesce Result: Self-destructed Performance ------------- Evolutions (6) 3000 Regions Visited (23) 4600 Robots Destroyed (329) 1645 Value Destroyed (12316) 12316 Prototype IDs (36) 720 Alien Tech Used (0) 0 Bonus (4530) 4530 TOTAL SCORE: 26811 Bonus ------- High Alert Combat Kills 836 Follower Combat Kills 2111 Network Hubs Disabled 200 Met Zhirov 300 Met Warlord at Base 500 MAIN.C Attacked Warlord 500 Warlord Defense Kills 228 Met R17 at Cetus 500 Friendly Fire -645 Cogmind --------- Core Integrity 989/1150 Matter 109/300 Energy 405/405 System Corruption 20% Temperature Cool (0) Movement Treading (160) Location -4/Factory Parts ------- > --- POWER (2) -------- Neutrino Core (fused) Light Quantum Reactor > --- PROPULSION (4) --- Centrium Heavy Treads Centrium Heavy Treads > --- UTILITY (8) ------ Advanced Cooling System Enhanced Optical Array Advanced Signal Interpreter Experimental Core Analyzer Improved Medium Armor Plating Improved Force Field Hacking Suite > --- WEAPON (5) ------- Advanced KE Penetrator Hypervelocity Gauss Cannon Tri-rail Accelerator > --- INVENTORY (5) ---- Advanced Sensor Array Authchip [Device] Mapping Drone Bay (3/3) Vortex Rail Vortex Rail Peak State ------------ > --- POWER ------------ Neutrino Core Compact Particle Reactor > --- PROPULSION ------- Centrium Heavy Treads Centrium Heavy Treads > --- UTILITY ---------- Advanced Cooling System Enhanced Optical Array Advanced Signal Interpreter Experimental Core Analyzer Centrium Medium Armor Plating Improved Force Field Advanced Hacking Suite Mapping Drone Bay > --- WEAPON ----------- Advanced KE Penetrator Advanced KE Penetrator Advanced KE Penetrator Tri-rail Accelerator > --- INVENTORY -------- Advanced Sensor Array Hacking Suite Authchip [Weapon] Vortex Rail Vortex Rail [Rating: 146] Favorites ----------- Power Compact Particle Reactor Engine Improved Deuterium Engine Power Core Neutrino Core Reactor Compact Particle Reactor Propulsion Centrium Heavy Treads Treads Centrium Heavy Treads Leg Carbon-fiber Leg Wheel Armored Huge Wheel Utility Hacking Suite Device Advanced Sensor Array Processor Improved Signal Interpreter Hackware Hacking Suite Protection Improved Utility Shielding Weapon Advanced KE Penetrator Energy Gun EM Pulse Gun Ballistic Gun Advanced KE Penetrator Ballistic Cannon Tri-rail Accelerator Launcher Heavy Rocket Launcher Slashing Weapon Chainsword Build | -11 -10 -10 -9 -9 -8 -7 -7 -7 -7 -6 -6 -6 -6 -6 -6 -5 -5 -5 -5 -4 -4 -4 -4 ------- Run | Jun Mat Min Mat Sto Mat Fac Low Low Zio Pro Fac Ext Cet Arc Hub Fac Upp Upp War Pro Fac Was Fac Slots Evolved 12 | . . . 2 . 2 2 . . . . 2 . . . . 2 . . . . 2 . . Power 1 | . . . . . . . . . . . . . . . . . . . . . 1 . . Propulsion 2 | . . . . . . . . . . . 2 . . . . . . . . . . . . Utility 6 | . . . . . 2 2 . . . . . . . . . 2 . . . . . . . Weapon 3 | . . . 2 . . . . . . . . . . . . . . . . . 1 . . Parts Attached 289 | 7 9 3 15 17 13 38 8 15 . 13 10 40 6 1 6 23 12 4 3 5 23 . 18 Power 15 | 1 1 . 1 2 1 1 . 1 . 1 1 2 . . . 1 . . . . 2 . . Engine 10 | 1 1 . 1 2 1 1 . 1 . 1 1 . . . . . . . . . . . . Core 2 | . . . . . . . . . . . . 1 . . . . . . . . 1 . . Reactor 3 | . . . . . . . . . . . . 1 . . . 1 . . . . 1 . . Propulsion 35 | 2 4 . 5 5 1 5 . 1 . . . 8 2 . . 1 1 . . . . . . Treads 33 | 2 4 . 5 5 1 5 . 1 . . . 6 2 . . 1 1 . . . . . . Leg 1 | . . . . . . . . . . . . 1 . . . . . . . . . . . Wheel 1 | . . . . . . . . . . . . 1 . . . . . . . . . . . Hover . | . . . . . . . . . . . . . . . . . . . . . . . . Flight . | . . . . . . . . . . . . . . . . . . . . . . . . Utility 175 | 2 1 2 2 1 5 27 7 8 . 11 5 25 1 1 6 14 11 4 2 5 19 . 16 Device 121 | 2 . 2 1 1 2 19 7 8 . 10 4 21 . . 3 8 5 3 1 2 11 . 11 Storage . | . . . . . . . . . . . . . . . . . . . . . . . . Processor 9 | . . . . . . 2 . . . . 1 2 . . . 1 1 . 1 1 . . . Hackware 10 | . . . . . 2 3 . . . 1 . 1 . 1 . . . . . . 2 . . Protection 35 | . 1 . 1 . 1 3 . . . . . 1 1 . 3 5 5 1 . 2 6 . 5 Artifact . | . . . . . . . . . . . . . . . . . . . . . . . . Weapon 64 | 2 3 1 7 9 6 5 1 5 . 1 4 5 3 . . 7 . . 1 . 2 . 2 Energy Gun 6 | 1 1 . 1 1 . 2 . . . . . . . . . . . . . . . . . Energy Cannon . | . . . . . . . . . . . . . . . . . . . . . . . . Ballistic Gun 47 | 1 2 1 5 8 6 2 1 3 . . 3 4 3 . . 5 . . 1 . 1 . 1 Ballistic Cannon 4 | . . . . . . . . . . . . . . . . 2 . . . . 1 . 1 Launcher 3 | . . . . . . . . 2 . 1 . . . . . . . . . . . . . Special Weapon . | . . . . . . . . . . . . . . . . . . . . . . . . Impact Weapon . | . . . . . . . . . . . . . . . . . . . . . . . . Slashing Weapon 4 | . . . 1 . . 1 . . . . 1 1 . . . . . . . . . . . Piercing Weapon . | . . . . . . . . . . . . . . . . . . . . . . . . Special Melee Weapon . | . . . . . . . . . . . . . . . . . . . . . . . . Unidentified Prototypes 10 | . . . . 1 . 2 . . . . . 2 3 . . 1 . . 1 . . . . Parts Lost 12 | . 2 . 1 . . . . . . 2 . 1 1 . . . . 2 1 . . . 2 Power 1 | . 1 . . . . . . . . . . . . . . . . . . . . . . Propulsion . | . . . . . . . . . . . . . . . . . . . . . . . . Utility 6 | . 1 . . . . . . . . 1 . . . . . . . 2 1 . . . 1 Weapon 5 | . . . 1 . . . . . . 1 . 1 1 . . . . . . . . . 1 Highest Loss Streak 2 | . 2 . 1 . . . . . . 1 . 1 1 . . . . 2 1 . . . 2 To Critical Strikes 1 | . . . . . . . . . . . . . 1 . . . . . . . . . . Average Slot Usage (%) 92 | . 97 95 99 98 100 99 99 100 100 95 86 95 87 86 86 85 82 81 81 82 79 84 83 Engine 4 | . 13 14 11 10 9 7 7 7 7 7 6 3 . . . . . . . . . . . Reactor 2 | . . . . . . . . . . . . . 6 6 6 5 5 5 5 5 5 5 5 Treads 15 | . 27 28 22 22 18 15 15 15 15 15 13 17 15 13 13 11 11 11 11 11 10 10 10 Device 14 | . 20 19 17 11 9 7 14 15 15 15 13 11 . . 3 15 15 15 16 17 17 15 12 Processor 9 | . . . . . . 12 7 7 7 7 6 13 20 16 13 11 17 13 11 17 15 15 15 Hackware 10 | . . . . . 18 20 15 15 15 9 13 13 13 16 20 16 11 11 10 5 5 10 9 Protection 4 | . 5 4 4 11 9 4 7 7 7 7 5 . 6 6 2 . . 3 5 4 1 . 2 Energy Gun 2 | . 14 14 7 2 . 2 6 . . . . . . . . . . . . . . . . Ballistic Gun 21 | . 14 14 31 33 36 26 23 29 30 27 20 25 25 26 26 18 11 11 11 11 15 15 13 Ballistic Cannon 1 | . . . . . . . . . . . . . . . . 1 5 5 5 5 5 5 6 Naked Turns . | . . . . . . . . . . . . . . . . . . . . . . . . Heaviest Build 87 | 9 11 10 17 22 27 37 45 46 41 45 46 44 38 38 38 50 54 55 56 56 86 77 87 Greatest Support 160 | 40 40 40 40 46 46 46 46 46 43 43 43 100 160 160 160 160 160 160 160 160 160 160 160 Greatest Overweight (x) 2 | . 2 . . . . . . . . 1 1 1 . . . . . . . . . . . Average Overweight (x) . | . . . . . . . . . . . . . . . . . . . . . . . . Largest Inventory Capacity 5 | 5 5 5 5 5 5 5 5 5 5 5 5 5 5 5 5 5 5 5 5 5 5 5 5 Average Capacity 5 | 5 5 5 5 5 5 5 5 5 5 5 5 5 5 5 5 5 5 5 5 5 5 5 5 Most Carried 5 | 1 5 5 5 5 5 5 5 5 5 5 5 5 5 5 5 5 5 5 5 5 5 5 5 Average Carried 4 | . 3 5 4 4 4 4 4 5 4 4 4 4 4 5 5 4 4 3 4 5 4 5 5 Final Capacity 5 | 5 5 5 5 5 5 5 5 5 5 5 5 5 5 5 5 5 5 5 5 5 5 5 5 Final Carried 5 | 1 5 5 5 5 5 5 5 5 5 5 5 5 5 5 5 5 5 4 5 5 5 5 5 Class Distribution -------------------- 47% | Scavenger-Skirmisher 13% | Hacker-Skirmisher 9% | Hacker-Tank 8% | Scavenger-Tank 5% | Mutant 4% | Scavenger-Mutant Dominant Class ---------------- Mutant | -10/Materials Scavenger-Mutant | -10/Mines Scavenger-Skirmisher | -9/Materials Tank | -9/Storage Hacker-Tank | -8/Materials Hacker-Skirmisher | -7/Factory Scavenger-Skirmisher | -7/Lower Caves Hacker-Skirmisher | -7/Lower Caves Hacker-Tank | -7/Zion Scavenger-Skirmisher | -6/Proximity Caves Scavenger-Skirmisher | -6/Factory Scavenger-Skirmisher | -6/Extension Scavenger-Gunner | -6/Cetus Scavenger-Gunner | -6/Archives Scavenger-Skirmisher | -6/Hub_04(d) Scavenger-Skirmisher | -5/Factory Scavenger-Skirmisher | -5/Upper Caves Scavenger-Skirmisher | -5/Upper Caves Scavenger-Skirmisher | -5/Warlord Scavenger-Skirmisher | -4/Proximity Caves Scavenger-Skirmisher | -4/Factory Scavenger-Skirmisher | -4/Waste Scavenger-Tank | -4/Factory Resources | -11 -10 -10 -9 -9 -8 -7 -7 -7 -7 -6 -6 -6 -6 -6 -6 -5 -5 -5 -5 -4 -4 -4 -4 ----------- Run | Jun Mat Min Mat Sto Mat Fac Low Low Zio Pro Fac Ext Cet Arc Hub Fac Upp Upp War Pro Fac Was Fac Matter Collected 9839 | 207 287 61 341 675 484 907 186 407 10 700 50 1034 159 31 114 888 448 552 105 466 729 248 750 Remotely . | . . . . . . . . . . . . . . . . . . . . . . . . Salvage Created 15641 | 45 639 330 1209 1706 767 1310 190 189 . 642 50 1088 128 31 711 1217 605 531 121 520 1105 1405 1102 Parts 746 | 7 37 8 82 110 48 72 11 12 . 33 5 55 4 2 31 57 26 12 8 25 44 9 48 Haulers Intercepted 9 | . 1 . 2 1 2 . . . . . . . . . 2 1 . . . . . . . Recyclers Shooed 21 | 1 . 2 4 3 1 1 . . . . 1 3 . . . 1 . . . . 3 . 1 Parts Field Recycled . | . . . . . . . . . . . . . . . . . . . . . . . . Retrieved Matter . | . . . . . . . . . . . . . . . . . . . . . . . . Parts Self-Destructed 117 | . . . . . . . 12 6 . 34 . . . . . . 26 14 . 25 . . . Prevented 2 | . . . . . . . . . . . . . . . . . . 2 . . . . . Kills | -11 -10 -10 -9 -9 -8 -7 -7 -7 -7 -6 -6 -6 -6 -6 -6 -5 -5 -5 -5 -4 -4 -4 -4 ------- Run | Jun Mat Min Mat Sto Mat Fac Low Low Zio Pro Fac Ext Cet Arc Hub Fac Upp Upp War Pro Fac Was Fac Combat Hostiles Destroyed 251 | . 12 . 28 30 13 22 4 9 . 16 1 11 2 . 4 16 11 13 2 16 16 6 19 Melee 5 | . . . 4 . . 1 . . . . . . . . . . . . . . . . . Guns 171 | . 10 . 24 30 13 21 4 2 . 7 1 11 2 . 3 11 3 3 . 5 8 3 10 Cannons 56 | . . . . . . . . . . . . . . . . 5 8 10 2 11 8 3 9 AOE 19 | . 2 . . . . . . 7 . 9 . . . . 1 . . . . . . . . Classes Destroyed 22 | 1 6 1 2 1 . 2 1 1 . . . . . . 2 1 1 . 1 1 . 1 . Worker 16 | . 1 1 2 5 1 . . . . . . . . . 3 2 . . . . . . 1 Builder 4 | . . . . . . . . . . . . . . . 2 . . . . . 1 . 1 Tunneler 8 | 3 2 . 1 . . 1 . . . . . . . . . 1 . . . . . . . Hauler 9 | . 1 . 2 1 2 . . . . . . . . . 2 1 . . . . . . . Recycler 16 | . . 4 . 4 1 2 . . . . . 2 . . 1 1 . . . . 1 . . Minesweeper 1 | . . . . . . . 1 . . . . . . . . . . . . . . . . Mechanic 1 | . . . . . . . . . . . . . . . . 1 . . . . . . . Operator 8 | . 1 . 1 2 2 . . . . . . 1 . . . . . . . . 1 . . Drone 2 | . . . . . . . . . . . . . . . . . . . . 2 . . . Watcher 12 | . 1 . . 1 3 3 . . . . . 1 . . . 1 . . . . . . 2 Swarmer 56 | . 3 . 8 6 6 3 3 8 . 6 . 2 . . . . . 3 . 8 . . . Grunt 110 | . 9 . 15 15 6 12 . . . 8 . 1 1 . 3 11 7 4 1 4 6 . 7 Brawler 7 | . . . 1 . . 1 . . . . . . . . . . 1 2 . 1 . . 1 Duelist 6 | . . . . 1 . 1 . . . 2 . . . . . . . 1 . . 1 . . Protector 1 | . . . . . . . . . . . . . . . . . . . 1 . . . . Sentry 32 | . . . 4 8 1 2 1 . . . . 8 . . 1 1 1 1 . . 3 . 1 Hunter 6 | . . . . . . . . . . . . . . . . . 1 1 . . . . 4 Programmer 17 | . . . . . . 2 . . . . 1 . . . . 4 . . . . 6 . 4 Heavy 2 | . . . . . . 1 . . . . . . . . . . . . . . . . 1 Behemoth 4 | . . . . . . . . . . . . . . . . . 1 1 . 1 . . 1 Compactor 6 | . . . . . . . . . . . . . . . . . . . . . . 6 . Cetus Guard 1 | . . . . . . . . . . . . . 1 . . . . . . . . . . Thug 2 | . . . . . . . . . . . . 2 . . . . . . . . . . . Guerrilla 1 | . . . . . . . . . . . . . . . 1 . . . . . . . . Mutant 1 | . . . . . . . . 1 . . . . . . . . . . . . . . . Best Kill Streak 9 | 2 6 3 9 9 8 4 3 4 . 4 1 3 1 . 8 5 4 9 2 5 7 5 4 Combat Bots Only 9 | . 5 . 5 6 5 4 3 4 . 4 1 2 1 . 2 4 4 9 2 5 6 5 4 Max Kills in Single Turn 9 | 1 1 1 3 2 2 2 1 4 . 2 1 2 1 . 9 2 2 1 1 2 2 1 2 Gunslinging 2 | . . . 2 1 1 1 . . . . . . . . . . . . . . . . . Exploded 4 | . 1 . . . . . . 4 . 2 . . . . 1 . . . . . . . . Melee 1 | . . . 1 . . 1 . . . . . . . . . . . . . . . . . Uniques/NPCs Destroyed . | . . . . . . . . . . . . . . . . . . . . . . . . Combat | -11 -10 -10 -9 -9 -8 -7 -7 -7 -7 -6 -6 -6 -6 -6 -6 -5 -5 -5 -5 -4 -4 -4 -4 -------- Run | Jun Mat Min Mat Sto Mat Fac Low Low Zio Pro Fac Ext Cet Arc Hub Fac Upp Upp War Pro Fac Was Fac Damage Taken 9975 | . 491 47 543 604 287 825 255 213 . 635 61 659 98 . 1183 637 201 1068 182 403 470 . 1113 Core 913 | . 95 . 69 103 68 77 65 . . 64 16 42 . . 60 30 . 22 . 41 28 . 133 Absorbed by Shields 2390 | . . . . . 32 228 120 56 . 148 . 260 . . . 151 95 231 19 133 309 . 608 Reduced by Siege Mode 324 | . . . . . . . . . . . . . . . . 56 21 111 . 37 29 . 70 Redirected to Shielding 127 | . 19 . 6 11 . 7 8 25 . 51 . . . . . . . . . . . . . Regen/Repaired (Parts) 1272 | . . . . 72 102 . . . . . . . . . . 717 . . 381 . . . . Core Remaining (%) 78 | 100 . 62 . 57 87 . . . . 70 . . . . 86 . . . . 90 . . . Volleys Fired 583 | 10 56 9 42 60 33 46 13 13 . 40 3 31 6 2 16 40 18 31 4 29 26 19 36 Largest 4 | 2 2 2 4 4 4 4 4 4 . 4 4 4 4 4 4 4 3 3 3 3 4 4 4 Hottest 191 | 60 60 60 120 102 92 144 154 117 . 122 126 126 111 123 123 136 130 130 130 130 165 165 191 Shots Fired 1854 | 20 112 18 152 199 132 178 49 43 . 117 10 115 24 8 64 112 55 88 12 75 96 43 132 Gun 1655 | 20 112 18 152 199 132 178 49 40 . 108 10 115 24 8 64 97 37 56 8 46 70 24 88 Cannon 187 | . . . . . . . . . . . . . . . . 15 18 32 4 29 26 19 44 Launcher 12 | . . . . . . . . 3 . 9 . . . . . . . . . . . . . Special . | . . . . . . . . . . . . . . . . . . . . . . . . Kinetic 1694 | 10 56 9 118 181 132 167 39 40 . 108 10 115 24 8 64 112 55 88 12 75 96 43 132 Thermal 79 | 10 2 . 28 18 . 11 10 . . . . . . . . . . . . . . . . Explosive 12 | . . . . . . . . 3 . 9 . . . . . . . . . . . . . Electromagnetic 69 | . 54 9 6 . . . . . . . . . . . . . . . . . . . . Robot Hit Streak 26 | 11 11 5 9 20 16 17 6 9 . 11 6 14 7 6 13 11 17 26 22 21 17 16 21 Robot Miss Streak 7 | 2 4 4 6 5 2 4 2 1 . 5 1 7 4 . 2 2 5 5 1 4 2 3 4 Penetration Max 1 | . . . . . . . . . . 1 . 1 . . 1 1 1 1 1 . 1 . 1 Secondary Targets 27 | . 2 . 7 6 5 5 . . . 1 . . . . . . . . . . . . 1 Max Gunslinging Chain 2 | . 1 . 2 1 1 2 . . . 1 . . . . . . . . . . . . 1 Shots Hit Robots 1252 | 15 77 9 107 139 85 131 29 31 . 71 8 67 18 6 44 61 39 68 9 51 61 34 92 Core Hits 679 | 5 27 6 51 55 41 69 10 15 . 44 3 48 14 3 30 40 26 33 9 28 44 20 58 Critical Kills 34 | . . . . . . . 1 1 . 2 . 8 1 1 2 6 2 1 . . 4 2 3 Critical Parts Destroyed 56 | . . . . . . 2 . 2 . 9 1 11 1 . 2 6 1 6 1 5 6 . 3 Critical Strikes 113 | . 1 . 1 2 . 3 2 3 . 11 1 20 3 1 5 12 4 10 1 6 12 5 10 Burn 4 | . . . . 2 . 1 1 . . . . . . . . . . . . . . . . Destroy 101 | . . . . . . 2 1 3 . 11 1 20 3 1 5 12 3 9 1 6 11 2 10 Blast 6 | . . . . . . . . . . . . . . . . . 1 1 . . 1 3 . Corrupt 1 | . 1 . . . . . . . . . . . . . . . . . . . . . . Sever 1 | . . . 1 . . . . . . . . . . . . . . . . . . . . Melee Attacks 33 | . . . 19 6 . 5 . . . . 2 1 . . . . . . . . . . . Impact . | . . . . . . . . . . . . . . . . . . . . . . . . Slashing 33 | . . . 19 6 . 5 . . . . 2 1 . . . . . . . . . . . Piercing . | . . . . . . . . . . . . . . . . . . . . . . . . Sneak Attacks 14 | . . . 8 5 . . . . . . 1 . . . . . . . . . . . . Combat Hostiles . | . . . . . . . . . . . . . . . . . . . . . . . . Follow-up Attacks . | . . . . . . . . . . . . . . . . . . . . . . . . Damage Inflicted 33033 | 154 1218 115 1896 2387 1302 2121 428 750 . 1960 184 1470 309 142 2304 2320 1117 2573 529 1863 2597 1732 3562 Guns 20565 | 154 1032 113 1089 2066 1287 2036 428 238 . 980 123 1422 309 142 1287 1566 498 1001 264 931 1328 492 1779 Cannons 8262 | . . . . . . . . . . . . . . . . 631 619 1548 265 932 1259 1240 1768 Explosions 2690 | . 183 . . . . . . 512 . 980 . . . . 1015 . . . . . . . . Melee 1287 | . . . 805 314 . 69 . . . . 61 38 . . . . . . . . . . . Ramming 229 | . 3 2 2 7 15 16 . . . . . 10 . . 2 123 . 24 . . 10 . 15 Kinetic 27350 | 67 450 40 823 1887 1287 1857 317 238 . 980 123 1422 309 142 1287 2197 1117 2549 529 1863 2587 1732 3547 Thermal 952 | 87 206 . 181 179 . 179 111 . . . . . . . 9 . . . . . . . . Explosive 1492 | . . . . . . . . 512 . 980 . . . . . . . . . . . . . Electromagnetic 1723 | . 559 73 85 . . . . . . . . . . . 1006 . . . . . . . . Impact . | . . . . . . . . . . . . . . . . . . . . . . . . Slashing 1287 | . . . 805 314 . 69 . . . . 61 38 . . . . . . . . . . . Piercing . | . . . . . . . . . . . . . . . . . . . . . . . . Highest Corruption 20 | . . . . 1 . 4 . . . . . 4 . . 4 3 3 8 8 . 2 17 20 Average Corruption 6 | . . . . 1 . 2 . . . . . 1 . . 2 2 3 6 8 . 1 9 17 Corruption Purged 9 | . . . . . . 5 . . . . . 4 . . . . . . . . . . . Corruption Blocked 2 | . . . . . . . . . . . . . . . . . . . 2 . . . . Effects 134 | . . . . . . 2 . . . . . 3 . . 2 10 23 24 2 . 6 6 56 Message Errors 28 | . . . . . . 1 . . . . . . . . . 3 1 7 . . . 1 15 Matter Fused 26 | . . . . . . . . . . . . . . . . 1 6 7 . . 2 1 9 Heat Flow Errors 13 | . . . . . . . . . . . . . . . . . 3 4 . . 1 1 4 Energy Discharges 14 | . . . . . . . . . . . . 1 . . . 2 5 . 1 . 3 2 . Parts Rejected 2 | . . . . . . . . . . . . . . . . 2 . . . . . . . Parts Fused 1 | . . . . . . . . . . . . . . . . . . . . . . . 1 Data Loss (minor) 20 | . . . . . . . . . . . . 2 . . 1 . 5 3 . . . 1 8 Data Loss (major) 10 | . . . . . . 1 . . . . . . . . 1 . 2 . . . . . 6 Misfires 5 | . . . . . . . . . . . . . . . . . 1 2 . . . . 2 Alerts 4 | . . . . . . . . . . . . . . . . 1 . . 1 . . . 2 Misdirections 5 | . . . . . . . . . . . . . . . . . . . . . . . 5 Weapon Failures 6 | . . . . . . . . . . . . . . . . 1 . 1 . . . . 4 Overload Shots . | . . . . . . . . . . . . . . . . . . . . . . . . Overflow Damage 332 | . . . 151 89 . . . . . . . 8 . . 6 . . 25 18 5 . . 30 Projectiles 63 | . . . . . . . . . . . . . . . . . . 14 18 5 . . 26 Explosions 6 | . . . . . . . . . . . . . . . 6 . . . . . . . . Melee 263 | . . . 151 89 . . . . . . . 8 . . . . . 11 . . . . 4 Knockbacks 34 | . . . . . . . . . . . . . . . . 9 1 2 . 3 10 . 9 Impact 2 | . . . . . . . . . . . . . . . . 2 . . . . . . . Kinetic 31 | . . . . . . . . . . . . . . . . 7 1 2 . 3 9 . 9 Secondary 1 | . . . . . . . . . . . . . . . . . . . . . 1 . . Self-Inflicted Damage 148 | . 29 . . . . . . 17 . . . . . . 102 . . . . . . . . Shots 4 | . 1 . . . . . . 1 . . . . . . 2 . . . . . . . . Rammed 37 | . 2 . . 2 4 2 . . . . . 1 . . 2 17 . 3 . . 1 . 3 Targets Rammed 44 | . 2 1 1 3 4 3 . . . . . 2 . . 2 19 . 3 . . 1 . 3 Kicked . | . . . . . . . . . . . . . . . . . . . . . . . . Crushed 7 | . . 1 1 1 . 1 . . . . . 1 . . . 2 . . . . . . . Highest Temperature 355 | 40 48 40 178 346 71 344 110 276 . 355 90 159 99 90 221 247 251 318 55 9 66 155 329 Average Temperature 70 | 22 19 15 50 53 19 60 40 151 . 152 47 44 40 49 71 85 76 126 27 9 11 80 94 Received Heat Transfer 2364 | . 180 . 177 264 99 228 36 . . 247 . 174 . . 396 170 61 143 29 40 78 . 42 Effects 9 | . . . . . . 2 . 1 . 3 . . . . . 1 . 1 . . . . 1 Energy Bleed 5 | . . . . . . 1 . . . 1 . . . . . 1 . 1 . . . . 1 Interference 1 | . . . . . . . . 1 . . . . . . . . . . . . . . . Short Circuit 1 | . . . . . . 1 . . . . . . . . . . . . . . . . . Damage (minor) 2 | . . . . . . . . . . 2 . . . . . . . . . . . . . Siege Activations 33 | . . . . . . . . . . . . . . . . 4 5 3 2 5 8 . 6 Total Turns 555 | . . . . . . . . . . . . . . . . 47 59 86 18 145 98 . 102 Longest Duration 78 | . . . . . . . . . . . . . . . . 17 39 59 15 78 28 . 23 Robots Corrupted . | . . . . . . . . . . . . . . . . . . . . . . . . Combat Hostiles . | . . . . . . . . . . . . . . . . . . . . . . . . Parts Fried 1 | . 1 . . . . . . . . . . . . . . . . . . . . . . Impact Corruptions 2 | . . . . . . . . . . . . . . . . . . 1 . . . . 1 Robots Melted . | . . . . . . . . . . . . . . . . . . . . . . . . Combat Hostiles . | . . . . . . . . . . . . . . . . . . . . . . . . Parts Melted 4 | 1 . . . 1 . . 2 . . . . . . . . . . . . . . . . Heat Transferred 2081 | 200 300 . 400 592 . 280 259 . . . . . . . 50 . . . . . . . . Parts Sabotaged . | . . . . . . . . . . . . . . . . . . . . . . . . Parts Stolen . | . . . . . . . . . . . . . . . . . . . . . . . . Parts Stripped . | . . . . . . . . . . . . . . . . . . . . . . . . Power Chain Reactions 6 | . 5 . . . . . . . . . . . . . 1 . . . . . . . . Missiles Intercepted . | . . . . . . . . . . . . . . . . . . . . . . . . Alert | -11 -10 -10 -9 -9 -8 -7 -7 -7 -7 -6 -6 -6 -6 -6 -6 -5 -5 -5 -5 -4 -4 -4 -4 ------- Run | Jun Mat Min Mat Sto Mat Fac Low Low Zio Pro Fac Ext Cet Arc Hub Fac Upp Upp War Pro Fac Was Fac Peak Influence 861 | 15 174 58 621 861 652 306 . . . . 87 740 824 475 788 489 . . . . 714 259 284 Initial 414 | . 9 53 . 214 363 276 . . . . 86 14 414 321 165 385 . . . . 312 249 181 Average 246 | 8 93 22 321 555 497 187 . . . . 37 215 665 369 372 248 . . . . 374 254 160 Maximum Alert Level 3 | . . . 2 3 2 1 . . . . . 3 3 2 3 2 . . . . 3 1 1 Low Security (%) 46 | 100 100 100 21 . . 43 . . . . 100 65 . . 21 36 . . . . . . 77 Level 1 35 | . . . 48 16 25 56 . . . . . 9 5 74 56 55 . . . . 77 100 22 Level 2 14 | . . . 29 55 74 . . . . . . 18 53 25 . 7 . . . . 19 . . Level 3 3 | . . . . 27 . . . . . . . 6 41 . 21 . . . . . 2 . . Level 4 . | . . . . . . . . . . . . . . . . . . . . . . . . Level 5 . | . . . . . . . . . . . . . . . . . . . . . . . . High Security . | . . . . . . . . . . . . . . . . . . . . . . . . Max Security . | . . . . . . . . . . . . . . . . . . . . . . . . Squads Dispatched 49 | . 4 . 3 4 1 8 . . . . 1 4 . . 4 4 . 1 . . 8 . 7 Investigation 22 | . 2 . 1 3 . 5 . . . . . 2 . . 3 1 . . . . 2 . 3 Extermination 10 | . . . . . . 2 . . . . 1 . . . . 2 . . . . 3 . 2 Reinforcement 14 | . 2 . 2 . 1 1 . . . . . 2 . . 1 1 . . . . 2 . 2 Assault 3 | . . . . 1 . . . . . . . . . . . . . 1 . . 1 . . Garrison . | . . . . . . . . . . . . . . . . . . . . . . . . Intercept . | . . . . . . . . . . . . . . . . . . . . . . . . Searches Triggered . | . . . . . . . . . . . . . . . . . . . . . . . . Construction Impeded 2 | . . . . . . . . . . . . . . . . . . . . . 1 . 1 Haulers Reinforced 3 | . . . . . . . . . . . . . . . 1 1 . . . . 1 . . Active Scanning Responses . | . . . . . . . . . . . . . . . . . . . . . . . . Cargo Convoy Interrupts . | . . . . . . . . . . . . . . . . . . . . . . . . Stealth | -11 -10 -10 -9 -9 -8 -7 -7 -7 -7 -6 -6 -6 -6 -6 -6 -5 -5 -5 -5 -4 -4 -4 -4 --------- Run | Jun Mat Min Mat Sto Mat Fac Low Low Zio Pro Fac Ext Cet Arc Hub Fac Upp Upp War Pro Fac Was Fac Distress Signals 22 | . 1 . 3 1 3 3 . . . . 1 1 2 . 2 1 . . . . 2 . 2 Communications Jammed 65 | . . . . . . . . . . . . . . . . 26 . 3 36 . . . . Distress Signals 65 | . . . . . . . . . . . . . . . . 26 . 3 36 . . . . Times Spotted 405 | . 23 1 42 39 23 31 4 9 . 18 3 29 14 . 22 26 9 16 27 17 19 6 27 Peak Tracking Total 12 | . 4 1 6 7 6 4 3 4 . 4 2 5 5 . 11 4 3 5 12 4 6 2 5 Tactical Retreats 3 | . . . 1 . . . . . . . 1 . . . . . . . . . 1 . . Traps | -11 -10 -10 -9 -9 -8 -7 -7 -7 -7 -6 -6 -6 -6 -6 -6 -5 -5 -5 -5 -4 -4 -4 -4 ------- Run | Jun Mat Min Mat Sto Mat Fac Low Low Zio Pro Fac Ext Cet Arc Hub Fac Upp Upp War Pro Fac Was Fac Traps Triggered 12 | . 1 . . 1 . 6 . . . . . 2 . . . . . . . . 1 . 1 Indirectly . | . . . . . . . . . . . . . . . . . . . . . . . . Trap Hack Attempts . | . . . . . . . . . . . . . . . . . . . . . . . . Triggered . | . . . . . . . . . . . . . . . . . . . . . . . . Disarmed . | . . . . . . . . . . . . . . . . . . . . . . . . Reprogrammed . | . . . . . . . . . . . . . . . . . . . . . . . . Reused . | . . . . . . . . . . . . . . . . . . . . . . . . Traps Extracted . | . . . . . . . . . . . . . . . . . . . . . . . . Installed . | . . . . . . . . . . . . . . . . . . . . . . . . Triggered 14 | . . . . . . . 2 . . . . . . . . . . 1 11 . . . . Machines | -11 -10 -10 -9 -9 -8 -7 -7 -7 -7 -6 -6 -6 -6 -6 -6 -5 -5 -5 -5 -4 -4 -4 -4 ---------- Run | Jun Mat Min Mat Sto Mat Fac Low Low Zio Pro Fac Ext Cet Arc Hub Fac Upp Upp War Pro Fac Was Fac Machines Disabled 34 | . 2 . . . 1 . . 1 . . . 1 . 1 12 2 . 1 . 1 9 . 3 Max in Single Turn 9 | . 1 . . . 1 . . 1 . . . . . . 9 1 . 1 . 1 7 . 1 Garrison Access 5 | . . . . 1 1 1 . . . . . . . . . 1 . . . . . . 1 Network Hub 1 | . . . . . . . . . . . . . . . 1 . . . . . . . . Energy Cycler 1 | . . . . . . . . . . . . 1 . . . . . . . . . . . Machines Repaired . | . . . . . . . . . . . . . . . . . . . . . . . . Machines Sabotaged . | . . . . . . . . . . . . . . . . . . . . . . . . Overloaded Fab Kills . | . . . . . . . . . . . . . . . . . . . . . . . . Hacking | -11 -10 -10 -9 -9 -8 -7 -7 -7 -7 -6 -6 -6 -6 -6 -6 -5 -5 -5 -5 -4 -4 -4 -4 --------- Run | Jun Mat Min Mat Sto Mat Fac Low Low Zio Pro Fac Ext Cet Arc Hub Fac Upp Upp War Pro Fac Was Fac Machines Accessed 91 | . 4 . 9 10 6 13 1 . . . 4 7 . . 3 12 . . 10 2 3 . 7 Terminals 47 | . 3 . 7 5 3 8 . . . . . 7 . . 3 4 . . . 1 1 . 5 Fabricators 5 | . . . . . . 3 . . . . . . . . . 1 . . . . 1 . . Repair Stations 10 | . . . 1 2 1 . . . . . 2 . . . . 2 . . . . 1 . 1 Recycling Units 8 | . 1 . 1 2 . . . . . . 2 . . . . 2 . . . . . . . Scanalyzers 4 | . . . . . 1 1 . . . . . . . . . 2 . . . . . . . Garrison Access 5 | . . . . 1 1 1 . . . . . . . . . 1 . . . . . . 1 Total Hacks 273 | . 13 . 30 27 20 43 1 . . . 9 16 . . 7 44 . . 23 2 14 . 24 Successful 148 | . 6 . 8 14 14 24 1 . . . 2 8 . . 3 25 . . 23 2 9 . 9 Failed 123 | . 6 . 21 13 6 19 . . . . 7 8 . . 4 19 . . . . 5 . 15 Catastrophic 19 | . 1 . 4 2 1 2 . . . . . . . . 1 2 . . . . . . 6 Database Lockouts 2 | . 1 . 1 . . . . . . . . . . . . . . . . . . . . Manual 90 | . 9 . 14 11 6 15 . . . . . 6 . . 4 13 . . . . 6 . 6 Terminals 150 | . 11 . 26 12 7 32 . . . . . 16 . . 7 15 . . . 1 6 . 17 Fabricators 19 | . . . . . . 9 . . . . . . . . . 4 . . . . 6 . . Repair Stations 25 | . . . 2 5 2 . . . . . 4 . . . . 6 . . . . 2 . 4 Recycling Units 23 | . 2 . 2 7 . . . . . . 5 . . . . 7 . . . . . . . Scanalyzers 19 | . . . . . 9 1 . . . . . . . . . 9 . . . . . . . Garrison Access 12 | . . . . 3 2 1 . . . . . . . . . 3 . . . . . . 3 Terminal Hacks 79 | . 4 . 6 4 2 12 1 . . . . 6 . . 2 7 . . 23 2 3 . 7 Record 17 | . . . . . . . . . . . . . . . . . . . 15 2 . . . Part Schematic 7 | . . . . . 1 3 . . . . . . . . 1 1 . . . . . . 1 Robot Analysis 4 | . 1 . 1 1 . 1 . . . . . . . . . . . . . . . . . Prototype ID Bank 13 | . . . 3 . . 1 . . . . . 1 . . . 1 . . 7 . . . . Open Door 8 | . . . . 2 . . 1 . . . . 4 . . . . . . 1 . . . . Level Access Points 1 | . . . . . . . . . . . . . . . 1 . . . . . . . . Branch Access Points 4 | . . . 1 . . 1 . . . . . . . . . 1 . . . . . . 1 Emergency Access Points 1 | . . . . . . . . . . . . . . . . . . . . . . . 1 Terminal Index 3 | . . . . 1 . . . . . . . . . . . 1 . . . . 1 . . Alert Level 1 | . . . . . . 1 . . . . . . . . . . . . . . . . . Unreport Threat 6 | . . . . . . 1 . . . . . 1 . . . 1 . . . . . . 3 Locate Traps 7 | . 1 . 1 . 1 2 . . . . . . . . . 1 . . . . 1 . . Maintenance Status 2 | . . . . . . 1 . . . . . . . . . 1 . . . . . . . Patrol Status 2 | . . . . . . 1 . . . . . . . . . . . . . . 1 . . Hauler Manifests 1 | . 1 . . . . . . . . . . . . . . . . . . . . . . Registered Prototypes 1 | . 1 . . . . . . . . . . . . . . . . . . . . . . Zone Layout 1 | . . . . . . . . . . . . . . . . . . . . . . . 1 Fabricator Hacks 12 | . . . . . . 7 . . . . . . . . . 1 . . . . 4 . . Network Status 3 | . . . . . . 1 . . . . . . . . . 1 . . . . 1 . . Load Schematic 5 | . . . . . . 3 . . . . . . . . . . . . . . 2 . . Build 4 | . . . . . . 3 . . . . . . . . . . . . . . 1 . . Repair Station Hacks 12 | . . . . 4 2 . . . . . . . . . . 5 . . . . . . 1 Scan Component 7 | . . . . 2 1 . . . . . . . . . . 3 . . . . . . 1 Repair 5 | . . . . 2 1 . . . . . . . . . . 2 . . . . . . . Recycling Unit Hacks 11 | . 1 . 1 4 . . . . . . 2 . . . . 3 . . . . . . . Report Inventory 9 | . 1 . 1 3 . . . . . . 2 . . . . 2 . . . . . . . Retrieve Matter 1 | . . . . . . . . . . . . . . . . 1 . . . . . . . Retrieve Components 1 | . . . . 1 . . . . . . . . . . . . . . . . . . . Scanalyzer 15 | . . . . . 9 . . . . . . . . . . 6 . . . . . . . Insert Component 7 | . . . . . 4 . . . . . . . . . . 3 . . . . . . . Analyze 8 | . . . . . 5 . . . . . . . . . . 3 . . . . . . . Garrison Access Hacks 5 | . . . . 1 1 1 . . . . . . . . . 1 . . . . . . 1 Seal Access 5 | . . . . 1 1 1 . . . . . . . . . 1 . . . . . . 1 Unauthorized Hacks 14 | . 1 . 1 1 . 4 . . . . . 2 . . 1 2 . . . . 2 . . Terminals 7 | . . . . . . 3 . . . . . 2 . . 1 . . . . . 1 . . Track 1 | . . . . . . 1 . . . . . . . . . . . . . . . . . Assimilate 1 | . . . . . . . . . . . . 1 . . . . . . . . . . . Botnet 4 | . . . . . . 2 . . . . . 1 . . . . . . . . 1 . . Sabotage 1 | . . . . . . . . . . . . . . . 1 . . . . . . . . Fabricators 3 | . . . . . . 1 . . . . . . . . . 1 . . . . 1 . . Recompile 3 | . . . . . . 1 . . . . . . . . . 1 . . . . 1 . . Repair Stations . | . . . . . . . . . . . . . . . . . . . . . . . . Recycling Units 4 | . 1 . 1 1 . . . . . . . . . . . 1 . . . . . . . Recyclers 1 | . . . . . . . . . . . . . . . . 1 . . . . . . . Tunnel 3 | . 1 . 1 1 . . . . . . . . . . . . . . . . . . . Scanalyzers . | . . . . . . . . . . . . . . . . . . . . . . . . Garrison Access . | . . . . . . . . . . . . . . . . . . . . . . . . Data Cores Recovered 4 | . . . 1 1 1 . . . . . . . . . . . . . . . 1 . . Used 1 | . . . . . 1 . . . . . . . . . . . . . . . . . . Hacking Detections 60 | . 2 . 8 5 3 12 . . . . 4 4 . . 2 10 . . . . 3 . 7 Full Trace Events 14 | . 1 . . 2 1 3 . . . . . 2 . . 1 . . . . . 1 . 3 Feedback Events . | . . . . . . . . . . . . . . . . . . . . . . . . Feedback Blocked 1 | . . . . . . 1 . . . . . . . . . . . . . . . . . Robot Schematics Acquired . | . . . . . . . . . . . . . . . . . . . . . . . . Robots Built 3 | . . . . . . 3 . . . . . . . . . . . . . . . . . Authchips . | . . . . . . . . . . . . . . . . . . . . . . . . Time 134 | . . . . . . 134 . . . . . . . . . . . . . . . . . Total Robot Build Rating 12 | . . . . . . 12 . . . . . . . . . . . . . . . . . Part Schematics Acquired 14 | . . . . . 5 3 . . . . . . . . 1 4 . . . . . . 1 Parts Built 5 | . . . . . . 4 . . . . . . . . . . . . . . 1 . . Authchips 2 | . . . . . . 1 . . . . . . . . . . . . . . 1 . . Time 241 | . . . . . . 157 . . . . . . . . . . . . . . 84 . . Total Part Build Rating 20 | . . . . . . 14 . . . . . . . . . . . . . . 6 . . Parts Repaired 5 | . . . . 2 1 . . . . . . . . . . 2 . . . . . . . Time 218 | . . . . 83 32 . . . . . . . . . . 103 . . . . . . . Parts Recycled . | . . . . . . . . . . . . . . . . . . . . . . . . Recycled Matter . | . . . . . . . . . . . . . . . . . . . . . . . . Retrieved Matter . | . . . . . . . . . . . . . . . . . . . . . . . . Retrieved Components 9 | . . . . 9 . . . . . . . . . . . . . . . . . . . Parts Scanalyzed 7 | . . . . . 4 . . . . . . . . . . 3 . . . . . . . Part Schematics Acquired 7 | . . . . . 4 . . . . . . . . . . 3 . . . . . . . Parts Damaged . | . . . . . . . . . . . . . . . . . . . . . . . . Bothacking | -11 -10 -10 -9 -9 -8 -7 -7 -7 -7 -6 -6 -6 -6 -6 -6 -5 -5 -5 -5 -4 -4 -4 -4 ------------ Run | Jun Mat Min Mat Sto Mat Fac Low Low Zio Pro Fac Ext Cet Arc Hub Fac Upp Upp War Pro Fac Was Fac Used RIF Installer . | . . . . . . . . . . . . . . . . . . . . . . . . Robots Hacked . | . . . . . . . . . . . . . . . . . . . . . . . . Non-combat . | . . . . . . . . . . . . . . . . . . . . . . . . Combat . | . . . . . . . . . . . . . . . . . . . . . . . . Robot Hacks Applied . | . . . . . . . . . . . . . . . . . . . . . . . . Relay Couplers Released . | . . . . . . . . . . . . . . . . . . . . . . . . Fabnet Peak Effective % . | . . . . . . . . . . . . . . . . . . . . . . . . Robots Rewired 20 | . . . . . . . . . . . . 19 . . . . . 1 . . . . . Allies Hacked . | . . . . . . . . . . . . . . . . . . . . . . . . Hacks Repelled . | . . . . . . . . . . . . . . . . . . . . . . . . Allies | -11 -10 -10 -9 -9 -8 -7 -7 -7 -7 -6 -6 -6 -6 -6 -6 -5 -5 -5 -5 -4 -4 -4 -4 -------- Run | Jun Mat Min Mat Sto Mat Fac Low Low Zio Pro Fac Ext Cet Arc Hub Fac Upp Upp War Pro Fac Was Fac Total Allies 38 | . . 2 . . . 3 . . 2 . . 30 . . . . . 1 . . . . . Largest Group 19 | . . 2 2 . . 3 . . 2 2 . 19 19 6 4 . . 1 1 . . . . Highest-Rated Group 544 | . . 38 38 . . 90 . . 39 39 . 544 544 206 142 . . 29 29 . . . . Highest-Rated Ally 39 | . . 31 31 . . 30 . . 25 25 . 39 39 39 39 . . 29 29 . . . . Total Orders 12 | . . . . . . . . . . . . . 7 . . . . . . 2 1 . 2 STAY 6 | . . . . . . . . . . . . . 6 . . . . . . . . . . FOLLOW 1 | . . . . . . . . . . . . . 1 . . . . . . . . . . RETURN 5 | . . . . . . . . . . . . . . . . . . . . 2 1 . 2 Ally Attacks 332 | . . 4 32 . . 20 . . . 4 . 142 57 36 27 . . 5 5 . . . . Total Damage 5273 | . . 22 440 . . 466 . . . 30 . 2267 877 612 408 . . 55 96 . . . . Kills 66 | . . 1 9 . . 5 . . . 1 . 20 14 6 7 . . 2 1 . . . . Allies Corrupted . | . . . . . . . . . . . . . . . . . . . . . . . . Allies Melted . | . . . . . . . . . . . . . . . . . . . . . . . . Intel | -11 -10 -10 -9 -9 -8 -7 -7 -7 -7 -6 -6 -6 -6 -6 -6 -5 -5 -5 -5 -4 -4 -4 -4 ------- Run | Jun Mat Min Mat Sto Mat Fac Low Low Zio Pro Fac Ext Cet Arc Hub Fac Upp Upp War Pro Fac Was Fac Robot Analysis Total 4 | . 1 . 1 1 . 1 . . . . . . . . . . . . . . . . . Derelict Logs Recovered 12 | . . 1 . . . . 1 2 2 2 . . . . . . 3 . . 1 . . . Drone Launches 5 | . . . . . . . . . . . . . . . . . . . . 2 1 . 2 Drone Recoveries 5 | . . . . . . . . . . . . . . . . . . . . 2 1 . 2 Exploration | -11 -10 -10 -9 -9 -8 -7 -7 -7 -7 -6 -6 -6 -6 -6 -6 -5 -5 -5 -5 -4 -4 -4 -4 ------------- Run | Jun Mat Min Mat Sto Mat Fac Low Low Zio Pro Fac Ext Cet Arc Hub Fac Upp Upp War Pro Fac Was Fac Turns Passed 26377 | 163 992 1070 1272 1024 793 2923 1211 1778 1131 1572 962 1347 282 79 344 2294 1040 678 903 2233 1118 158 1010 Spaces Moved 13773 | 78 444 616 621 397 376 1442 712 1062 684 832 543 766 150 38 166 1248 569 339 530 1118 482 66 494 Core 4 | 3 1 . . . . . . . . . . . . . . . . . . . . . . Treads 13290 | 75 443 616 621 397 376 1442 712 1062 684 832 543 287 150 38 166 1248 569 339 530 1118 482 66 494 Legs . | . . . . . . . . . . . . . . . . . . . . . . . . Wheels 479 | . . . . . . . . . . . . 479 . . . . . . . . . . . Hover . | . . . . . . . . . . . . . . . . . . . . . . . . Flight . | . . . . . . . . . . . . . . . . . . . . . . . . Fastest Speed 50 | 50 150 160 160 160 160 152 160 160 165 165 165 115 160 160 160 160 160 160 160 160 160 160 160 Average Speed 159 | 155 159 160 160 160 160 157 160 161 165 169 165 132 160 160 160 160 160 160 160 160 160 160 160 Slowest Speed 245 | 160 160 160 160 160 160 160 160 165 165 245 245 245 160 160 160 160 160 160 160 160 160 160 160 Overloaded Moves . | . . . . . . . . . . . . . . . . . . . . . . . . Propulsion Burnouts . | . . . . . . . . . . . . . . . . . . . . . . . . Robots Hopped . | . . . . . . . . . . . . . . . . . . . . . . . . Cave-ins Triggered . | . . . . . . . . . . . . . . . . . . . . . . . . Exploration Rate (%) 60 | 4 60 92 64 51 39 44 90 94 80 98 15 86 63 67 35 28 79 60 81 95 18 87 16 Regions Visited 23 Branch Regions 14 Pre-discovered Areas 10 | . 1 1 1 1 . . . . 5 1 . . . . . . . . . . . . . Known Exits Taken 16 | . . . 1 . . 1 1 1 1 1 1 1 1 1 1 1 1 1 1 1 . . . Unknown Exits Taken 5 | 1 1 1 . 1 1 . . . . . . . . . . . . . . . . . . Scrap Searched 18 | . . 1 . . . . 3 2 3 2 . . . . . . 4 . . 3 . . . Spaces Dug 73 | . . . 2 . . 3 . 39 . 13 1 . . . . 4 . . . 9 2 . . Terrain Destroyed 528 | . 16 . 2 . . 3 . 41 . 81 1 4 . . 139 33 35 25 1 42 55 6 44 Melee 6 | . . . 2 . . 3 . . . . 1 . . . . . . . . . . . . Projectile 242 | . . . . . . . . 1 . 4 . 2 . . 6 32 35 25 1 42 44 6 44 AOE 271 | . 16 . . . . . . 39 . 72 . . . . 133 . . . . . 11 . . Terrain Rammed . | . . . . . . . . . . . . . . . . . . . . . . . . Walls Destroyed . | . . . . . . . . . . . . . . . . . . . . . . . . Machines Disabled . | . . . . . . . . . . . . . . . . . . . . . . . . Actions | -11 -10 -10 -9 -9 -8 -7 -7 -7 -7 -6 -6 -6 -6 -6 -6 -5 -5 -5 -5 -4 -4 -4 -4 --------- Run | Jun Mat Min Mat Sto Mat Fac Low Low Zio Pro Fac Ext Cet Arc Hub Fac Upp Upp War Pro Fac Was Fac Total 16821 | 98 612 684 792 646 485 1960 750 1094 688 905 598 1015 183 52 204 1450 653 406 576 1502 762 87 619 Wait 1855 | 3 96 54 71 142 47 401 13 . 1 20 33 86 4 11 15 103 52 28 36 351 220 3 65 Move 13753 | 77 443 615 620 396 375 1442 711 1061 683 831 542 765 149 37 166 1247 568 338 529 1117 482 65 494 Hop . | . . . . . . . . . . . . . . . . . . . . . . . . Pick Up 64 | 1 3 . 8 4 5 12 2 1 2 1 1 3 5 . . 7 2 1 2 . 4 . . Fast Attach 62 | 7 3 2 3 6 . 4 1 1 . . 1 14 6 1 . 7 . . 2 . 2 . 2 Attach 22 | . 1 . 2 . 3 4 1 . . 2 . . . . . 4 1 2 . . 2 . . Detach 3 | . . . . . . . . . . . . 1 . . . 2 . . . . . . . Swap 205 | . 5 1 10 11 10 30 6 14 . 11 9 26 . . 6 12 11 2 1 5 19 . 16 Drop 128 | . 3 2 16 18 8 14 3 4 2 . 7 16 13 1 . 9 1 . 2 . 6 . 3 Fire 583 | 10 56 9 42 60 33 46 13 13 . 40 3 31 6 2 16 40 18 31 4 29 26 19 36 Melee 33 | . . . 19 6 . 5 . . . . 2 1 . . . . . . . . . . . Ram . | . . . . . . . . . . . . . . . . . . . . . . . . Kick . | . . . . . . . . . . . . . . . . . . . . . . . . Crush 42 | . 2 1 1 3 4 2 . . . . . 2 . . 1 19 . 3 . . 1 . 3 Escape Stasis . | . . . . . . . . . . . . . . . . . . . . . . . . Rewire 71 | . . . . . . . . . . . . 70 . . . . . 1 . . . . . Trap . | . . . . . . . . . . . . . . . . . . . . . . . . Miscellaneous . | . . . . . . . . . . . . . . . . . . . . . . . . Route ------- -11/Junkyard -10/Materials (discovered 4 exits: *Mat x3 / [*Min]) -10/Mines (discovered 2 exits: *Mat x2) -9/Materials (discovered 5 exits: *Mat x2 / *Min x2 / *Sto) -9/Storage -8/Materials -7/Factory (discovered 3 exits: *Fac / *Low x2) -7/Lower Caves -7/Lower Caves (discovered 2 exits: *Fac / *Zio) -7/Zion -6/Proximity Caves -6/Factory (discovered 3 exits: Fac / *Low / *Ext) -6/Extension (discovered 2 exits: *Fac / *Cet) -6/Cetus (discovered 2 exits: *Fac / *Arc) -6/Archives -6/Hub_04(d) (discovered 4 exits: *Fac x4) -5/Factory (discovered 3 exits: *Fac / *Upp x2) -5/Upper Caves -5/Upper Caves (discovered 2 exits: *Fac / *War) -5/Warlord -4/Proximity Caves -4/Factory -4/Waste -4/Factory (discovered 3 exits: *Res / Upp x2) History --------- Turn | Location | Event 6 | -11/Junkyard | Discovered new exit (range 16) 164 | -11/Junkyard | Entered Materials 276 | -10/Materials | Central database locked down 317 | -10/Materials | Build established: Mutant 580 | -10/Materials | Discovered new exit (range 11) 689 | -10/Materials | Discovered new exit (range 16) 799 | -10/Materials | Discovered new exit (range 16) 1130 | -10/Materials | Discovered new exit (range 9) 1156 | -10/Materials | Entered Mines 1249 | -10/Mines | Assembled infested the area 1550 | -10/Mines | Discovered new exit (range 9) 1625 | -10/Mines | Discovered new exit (range 13) 1725 | -10/Mines | Learned location of Zion (-7) 1817 | -10/Mines | Build established: Scavenger-Mutant 2226 | -10/Mines | Entered Materials 2226 | -9/Materials | Accompanied by 2 allies 2226 | -9/Materials | Evolved 2 slots: Weapon x2 2231 | -9/Materials | Led the pair of lost Derelicts to an unsafe place 2528 | -9/Materials | Build established: Scavenger-Skirmisher 2555 | -9/Materials | Central database locked down 2735 | -9/Materials | Discovered new exit (range 16) 2854 | -9/Materials | Identified exit to Mines 2854 | -9/Materials | Identified exit to Storage 2974 | -9/Materials | Discovered new exit (range 9) 3216 | -9/Materials | Build established: Scavenger-Tank 3498 | -9/Materials | Entered Storage 4132 | -9/Storage | Build established: Tank 4248 | -9/Storage | Repaired Imp. Ion Engine 4298 | -9/Storage | First assault squad dispatched 4308 | -9/Storage | Repaired Imp. Assault Rifle 4479 | -9/Storage | Discovered new exit (range 5) 4522 | -9/Storage | Entered Materials 4522 | -8/Materials | Evolved 2 slots: Utility x2 4823 | -8/Materials | Build established: Hacker-Tank 5053 | -8/Materials | Repaired Imp. Treads 5160 | -8/Materials | Discovered new exit (range 11) 5315 | -8/Materials | Entered Factory 5315 | -7/Factory | Evolved 2 slots: Utility x2 5995 | -7/Factory | Build established: Hacker-Skirmisher 6005 | -7/Factory | Fabricated L-41 Fighter? 6586 | -7/Factory | Discovered new exit (range 12) 6638 | -7/Factory | Identified exit to Factory 6691 | -7/Factory | Identified exit to Lower Caves 8055 | -7/Factory | Fabricated Imp. Treads (x2) 8157 | -7/Factory | Fabricated Hyp. Gauss Rifle (x2) 8238 | -7/Factory | Entered Lower Caves 8463 | -7/Lower Caves | Build established: Scavenger-Skirmisher 8740 | -7/Lower Caves | Learned 8 Factory zone layouts 8892 | -7/Lower Caves | Attracted the attention of an 0b10 checkpoint 9342 | -7/Lower Caves | Discovered new exit (range 15) 9365 | -7/Lower Caves | Identified exit to Lower Caves 9449 | -7/Lower Caves | Entered another Lower Caves area 9669 | -7/Lower Caves | Discovered exit to Factory (range 7) 9995 | -7/Lower Caves | Build established: Hacker-Skirmisher 10032 | -7/Lower Caves | Learned Factory trap positions 10244 | -7/Lower Caves | Spotted B-75 Beast 10309 | -7/Lower Caves | Identified exit to Zion 10710 | -7/Lower Caves | Attacked by a delusional Derelict stockpiling parts 11017 | -7/Lower Caves | Build established: Scavenger-Skirmisher 11144 | -7/Lower Caves | Encountered a Warlord checkpoint 11227 | -7/Lower Caves | Entered Zion 11341 | -7/Zion | Discovered new exit (range 10) 11356 | -7/Zion | Identified exit to Proximity Caves 11507 | -7/Zion | Build established: Hacker-Tank 11528 | -7/Zion | Acquired unknown access codes intercepted by a Zionite 11755 | -7/Zion | Learned location of Testing (-2) 11790 | -7/Zion | Learned location of Warlord (-5) 11826 | -7/Zion | Gained Derelict followers 11942 | -7/Zion | Learned location of Armory (-3) 12212 | -7/Zion | Learned Factory emergency access door positions 12358 | -7/Zion | Entered Proximity Caves 12358 | -6/Proximity Caves | Accompanied by 2 allies 12401 | -6/Proximity Caves | Learned Factory trap positions 12664 | -6/Proximity Caves | Build established: Scavenger-Skirmisher 13232 | -6/Proximity Caves | Build established: Scavenger-Mutant 13735 | -6/Proximity Caves | Build established: Scavenger-Skirmisher 13856 | -6/Proximity Caves | Discovered exit to Factory (range 15) 13930 | -6/Proximity Caves | Entered Factory 13930 | -6/Factory | Evolved 2 slots: Propulsion x2 13931 | -6/Factory | Identified exit to Factory 13932 | -6/Factory | Loaded intel: 113 trap records 14292 | -6/Factory | Discovered new exit (range 9) 14304 | -6/Factory | Identified exit to Lower Caves 14824 | -6/Factory | Discovered new exit (range 16) 14874 | -6/Factory | Identified exit to Extension 14892 | -6/Factory | Entered Extension 15280 | -6/Extension | Rescued a captive Derelict 15446 | -6/Extension | Rescued a captive Derelict 15446 | -6/Extension | Rescued a captive Derelict 15489 | -6/Extension | Rescued a captive Derelict 15490 | -6/Extension | Rescued a captive Derelict 15762 | -6/Extension | Allies destroyed B-75 Beast 15774 | -6/Extension | Spotted B-75 Beast 15788 | -6/Extension | Allies destroyed B-75 Beast 15817 | -6/Extension | Disrupted transfer network 15822 | -6/Extension | Build established: Commander-Gunner 15866 | -6/Extension | Rescued a captive Derelict 15867 | -6/Extension | Rescued a captive Derelict 15911 | -6/Extension | Energy Cycler disabled 15911 | -6/Extension | Rescued a captive Derelict 15911 | -6/Extension | Rescued a captive Derelict 15911 | -6/Extension | Rescued a captive Derelict 15913 | -6/Extension | Rescued a captive Derelict 15914 | -6/Extension | Rescued a captive Derelict 15915 | -6/Extension | Rescued a captive Derelict 15917 | -6/Extension | Rescued a captive Derelict 15918 | -6/Extension | Rescued a captive Derelict 16099 | -6/Extension | Extracted ID and sensor layout for unrecognized location from A7's data core 16206 | -6/Extension | Discovered exit to Factory (range 10) 16211 | -6/Extension | Discovered new exit (range 6) 16233 | -6/Extension | Identified exit to Cetus 16239 | -6/Extension | Entered Cetus 16239 | -6/Cetus | Accompanied by 19 allies 16254 | -6/Cetus | Spotted Cetus Guard 16255 | -6/Cetus | Spotted Cetus Guard 16258 | -6/Cetus | Spotted Cetus Guard 16260 | -6/Cetus | Spotted Cetus Guard 16272 | -6/Cetus | Allies destroyed Cetus Guard 16272 | -6/Cetus | Allies destroyed Cetus Guard 16274 | -6/Cetus | Allies destroyed Cetus Guard 16275 | -6/Cetus | Allies destroyed Cetus Guard 16368 | -6/Cetus | Discovered new exit (range 22) 16400 | -6/Cetus | Spotted Cetus Guard 16401 | -6/Cetus | Spotted Cetus Guard 16405 | -6/Cetus | Spotted Cetus Guard 16407 | -6/Cetus | Destroyed Cetus Guard 16408 | -6/Cetus | Allies destroyed Cetus Guard 16409 | -6/Cetus | Spotted Cetus Guard 16411 | -6/Cetus | Allies destroyed Cetus Guard 16412 | -6/Cetus | Allies destroyed Cetus Guard 16416 | -6/Cetus | Discovered exit to Factory (range 22) 16436 | -6/Cetus | Met Revision 17 16519 | -6/Cetus | Identified exit to Archives 16521 | -6/Cetus | Entered Archives 16521 | -6/Archives | Accompanied by 6 allies 16539 | -6/Archives | Met Zhirov 16545 | -6/Archives | Reinforcements dispatched to Archives 16545 | -6/Archives | Discovered new exit (range 22) 16588 | -6/Archives | Identified exit to Hub_04(d) 16590 | -6/Archives | Reinforcements dispatched to Archives 16600 | -6/Archives | Entered Hub_04(d) 16600 | -6/Hub_04(d) | Accompanied by 4 allies 16869 | -6/Hub_04(d) | Network Hub disabled 16917 | -6/Hub_04(d) | Spotted Lightning 16923 | -6/Hub_04(d) | Spotted Lightning 16924 | -6/Hub_04(d) | Spotted Lightning 16944 | -6/Hub_04(d) | Entered Factory 16944 | -5/Factory | Evolved 2 slots: Utility x2 16945 | -5/Factory | Loaded intel: 81 trap records 17117 | -5/Factory | Repaired Adv. KE Penetrator? 17200 | -5/Factory | Identified exit to Upper Caves 17240 | -5/Factory | Build established: Scavenger-Skirmisher 18471 | -5/Factory | Repaired Centrium Heavy Treads 19072 | -5/Factory | Discovered new exit (range 7) 19080 | -5/Factory | Identified exit to Factory 19238 | -5/Factory | Entered Upper Caves 19298 | -5/Upper Caves | Identified exit to Upper Caves 19586 | -5/Upper Caves | Spotted B-75 Beast 19631 | -5/Upper Caves | Destroyed B-75 Beast 19657 | -5/Upper Caves | Learned Factory security intel 19726 | -5/Upper Caves | Attracted the attention of an 0b10 checkpoint 20107 | -5/Upper Caves | Learned location of 1 exit from Factory 20278 | -5/Upper Caves | Entered another Upper Caves area 20350 | -5/Upper Caves | Discovered exit to Factory (range 7) 20478 | -5/Upper Caves | Attracted the attention of an 0b10 outpost 20554 | -5/Upper Caves | Destroyed 9 combat bots 20794 | -5/Upper Caves | Spotted B-75 Beast 20830 | -5/Upper Caves | Destroyed B-75 Beast 20851 | -5/Upper Caves | Discovered new exit (range 8) 20861 | -5/Upper Caves | Identified exit to Warlord 20956 | -5/Upper Caves | Entered Warlord 20956 | -5/Warlord | Accompanied by 1 ally 21009 | -5/Warlord | System corruption cleaned by Quarantine Array 21304 | -5/Warlord | Visited the Vortex Lab 21309 | -5/Warlord | Warlord's base attacked by MAIN.C 21322 | -5/Warlord | Met EX-DEC 21327 | -5/Warlord | Found Prototype Energy Gun 21330 | -5/Warlord | Found Prototype Energy Gun 21453 | -5/Warlord | Met Warlord 21659 | -5/Warlord | Warlord forces counterattacked 21741 | -5/Warlord | Spotted Executioner 21777 | -5/Warlord | Found Prototype Processor 21777 | -5/Warlord | Identified Exp. Core Analyzer 21793 | -5/Warlord | Discovered new exit (range 18) 21809 | -5/Warlord | Spotted Striker 21858 | -5/Warlord | Identified exit to Proximity Caves 21859 | -5/Warlord | Entered Proximity Caves 21937 | -4/Proximity Caves | Spotted B-86 Titan 21960 | -4/Proximity Caves | Destroyed B-86 Titan 21993 | -4/Proximity Caves | Spotter reported a threat 22037 | -4/Proximity Caves | Spotter reported a threat 23049 | -4/Proximity Caves | Learned Research stockpile data 24028 | -4/Proximity Caves | Discovered exit to Factory (range 8) 24092 | -4/Proximity Caves | Entered Factory 24092 | -4/Factory | Evolved 2 slots: Power x1, Weapon x1 24093 | -4/Factory | Identified exit to Research 24996 | -4/Factory | Fabricated Tri-rail Accelerator (x1) 25135 | -4/Factory | First assault squad dispatched 25210 | -4/Factory | Sucked down chute 25210 | -4/Factory | Entered Waste 25225 | -4/Waste | EMP discharged 25251 | -4/Waste | Destroyed C-40 Crusher 25255 | -4/Waste | Destroyed C-40 Crusher 25258 | -4/Waste | Spotted C-40 Crusher 25273 | -4/Waste | Destroyed C-40 Crusher 25276 | -4/Waste | Destroyed C-40 Crusher 25283 | -4/Waste | Spotted C-40 Crusher 25283 | -4/Waste | Destroyed C-40 Crusher 25299 | -4/Waste | Spotted C-40 Crusher 25308 | -4/Waste | Destroyed C-40 Crusher 25325 | -4/Waste | EMP discharged 25325 | -4/Waste | System corruption reached 10% 25353 | -4/Waste | Discovered new exit (range 10) 25366 | -4/Waste | Identified exit to Factory 25368 | -4/Waste | Entered Factory 25845 | -4/Factory | Discovered exit to Research (range 8) 25928 | -4/Factory | Identified exit to Upper Caves 26170 | -4/Factory | Spotted B-86 Titan 26213 | -4/Factory | Destroyed B-86 Titan 26359 | -4/Factory | Spotted B-86 Titan 26378 | -4/Factory | Self-destructed Last Messages --------------- 26351_ Ended siege mode. 26351_ Acquired 8 matter. 26352_ U-05 Engineer lays Concrete. 26353_ The unstable cave ceiling collapses. 26353_ U-05 Engineer lays Concrete. 26353_ K-01 Serf collects debris. 26354_ U-05 Engineer lays Concrete. 26357_ U-05 Engineer builds a Wall. 26359_ U-05 Engineer lays Concrete. 26364_ U-05 Engineer builds a Wall. 26367_ K-01 Serf collects debris. 26368_ BSIST:8UALTFDZ5K&GZHKD28MWSNH 26368_ K-01 Serf collects debris. 26371_ U-05 Engineer lays Concrete. 26371_ K-01 Serf collects debris. 26372_ U-05 Engineer lays Concrete. 26372_ K-01 Serf collects debris. 26373_ U-05 Engineer lays Concrete. 26376_ K-01 Serf collects debris. 26376_ U-05 Engineer lays Concrete. Map ----- +----------------------------------------------------+ | ?????????????????????????????????????????????????? | | ?????????????????????????????????????????????????? | | ?????????????????????????????????????????????????? | | ?????????????????????????????????????????????????? | | ?????????????????????????????????????????????????? | | ?????????????????????????????????????????????????? | | ?????????????????????????????????????????????????? | | ?????????????????????????????????????????????????? | | ?????????????????????????????????????????????????? | | ?????????????????????????????????????????????????? | | ??????????????" ?????????????????????????????????? | | ??????????????# ????????????????????????????????? | | ??????????????# ????????????????????????????????? | | ?????????????? ""??????????????????????????????? | | ????????????### """?????????????????????????????? | | ????????????? ?????????????????????????????? | | ?????????????? "T?????????????????????????????? | | ??????????????# ?????????????????????????????? | | ??????????????# ?????????????????????????????? | | ??????????????# ???????????????????#?????????? | | ??????????????# ?????????????? ??????????????? | | ??????????????# ??????????????????????#??????? | | ???????????#### ###????????#?????????#???????? | | ???????????## ###################?#?????#? | | ????????????# #?#???##?? | | ????????????# k @ ##??#????? | | ?????######## !% #?????#??? | | ?? % %! u #????????# | | ??????####### % ! #????#?#?? | | ???????????## % u u #????????? | | ???????????#; k #????????# | | ???????????## #####;### # ^#???????#? | | ????????????###########???#### # #?#??????? | | ????????????????????????#????## # ##??????## | | ???????????????????????##?????## ##????#??? | | ???????????????????????????????## #???#????? | | ??????????????????????????#?????# #?#??????? | | ????????????????????##??#???????# #????????# | | ???????????????????????????????## ########## | | ?????????????????????#?????#????# # | | ?????????????????????##?????#??## # ! | | ???????????????????????????????# # """ " | | ?????????????????????????#????##T # """ " | | ??????????????????????#??#???#?## # """ " | | ???????????????????????????#??### # | | ???????????????????????##?????#?# + " | | ????????????????????????????????# # " | | ??????????????????????????????### # """ " | | ???????????????????????????##???# # "Y | | ??????????????????????#????#?#??##### # """ [ | +----------------------------------------------------+ Best States ------------- Heat Dissipation 74 Energy Generation 39 Energy Capacity 405 Matter Stores 300 Matter Capacity 300 Sight Range 22 Robot Scan Range 16 Terrain Scan Range 16 Terrain Scan Density 10 Jamming Range 14 Additional Mass Support 12 Armor Coverage 450 Utility Shielding 66 Weapon Shielding 33 Evasion (%) 40 Target Analysis 5 Core Analysis 8 Recoil Reduction 4 Kinecelleration 30 Offensive Hacking 37 Defensive Hacking 10 Authchip Count 1 Item Schematics ----------------- Imp. Utility Shielding | -8/Materials | Hacked Katana | -8/Materials | Scanalyzed Imp. Treads | -8/Materials | Scanalyzed Hvy. Ion Engine | -8/Materials | Scanalyzed System Shield | -8/Materials | Scanalyzed Hyp. Gauss Rifle | -7/Factory | Hacked Hvy. Machine Gun | -7/Factory | Hacked Weapon Mount | -7/Factory | Hacked Exp. Targeting Computer | -6/Hub_04(d) | Hacked Lrn. Terrain Scanner | -5/Factory | Hacked Centrium Heavy Treads | -5/Factory | Scanalyzed Adv. KE Penetrator | -5/Factory | Scanalyzed Tri-rail Accelerator | -5/Factory | Scanalyzed Adv. Force Field | -4/Factory | Hacked Robot Schematics ------------------ None Fabricated ------------ L-41 Fighter | x3 | -7/Factory | Preloaded Imp. Treads | x2 | -7/Factory | Authchip Hyp. Gauss Rifle | x2 | -7/Factory Tri-rail Accelerator | x1 | -4/Factory | Authchip Alien Tech Used ----------------- None Achievements -------------- None Challenges ------------ None Game ------ Seed TitaniumMetafiberKatana Manual? 0 Play Time 04:32:34 Cumulative 156.2 hours Start 2023.03.23 @ 12:48:24 End 2023.04.11 @ 14:58:36 Sessions 21 Manual Loads 0 Difficulty Rogue Special Mode None Game No. 205 Rogue 205 Adventurer 0 Explorer 0 Win Type - Total 4 Types 3/0/0/1/0/0/0/0/0 Lore% 64 Gallery% 72 Achievement% 56 Wizard Run 0 Options --------- ASCII 0 Keyboard 0 Movement Numpad Keybinds 0 Fullscreen 1 Font 14/SmallcapsGlow Map View 84x54 Tactical HUD 1 Map Filters NONE Filters NONE Steam 1 RUN: 86297fec-caa1-4308-8dab-c35e2ce56a1d